Cogmind - Beta 14 @@@ ROGUE MODE // 2025.01.17 @ 00:28:48 Player: Peregrine Result: Self-destructed Performance ------------- Evolutions (2) 1000 Regions Visited (4) 800 Robots Destroyed (58) 290 Value Destroyed (1515) 1515 Prototype IDs (3) 60 Alien Tech Used (0) 0 Bonus (70) 70 TOTAL SCORE: 3735 Bonus ------- Follower Combat Kills 70 Cogmind --------- Core Integrity 189/550 Matter 300/300 Energy 89/100 System Corruption 0% Temperature Cool (48) Movement Core (350) Ox6 Location -8/Materials Parts ------- > --- POWER (1) -------- (None) > --- PROPULSION (3) --- (None) > --- UTILITY (5) ------ Large Storage Unit Terrain Scan Processor Improved Targeting Computer > --- WEAPON (2) ------- (None) > --- INVENTORY (15) --- Light Ion Engine Terrain Scan Processor Rocket Launcher Datajack Katana Peak State ------------ > --- POWER ------------ Heavy Ion Engine > --- PROPULSION ------- Aluminum Leg Aluminum Leg > --- UTILITY ---------- Large Storage Unit Improved Terrain Scanner Light Armor Plating > --- WEAPON ----------- Improved EM Shotgun Improved Medium Laser > --- INVENTORY -------- Ion Engine Light Ion Engine Light Treads Light Treads Wheel Compact Wheel Sensor Array Small Laser Improved Medium Laser Rocket Launcher Datajack [Rating: 17] Favorites ----------- Power Ion Engine Engine Ion Engine Propulsion Light Treads Treads Light Treads Leg Aluminum Leg Wheel Wheel Utility Large Storage Unit Device Sensor Array Storage Large Storage Unit Processor Visual Processing Unit Protection Light Armor Plating Weapon Heavy Assault Rifle Energy Gun Improved Medium Laser Ballistic Gun Heavy Assault Rifle Launcher Rocket Launcher Build | -11 -10 -9 -9 -8 ------- Run | Yrd Mat Mat Min Mat Slots Evolved 4 | . . 2 . 2 Power . | . . . . . Propulsion 1 | . . 1 . . Utility 3 | . . 1 . 2 Weapon . | . . . . . Parts Attached 56 | . 12 33 2 9 Power 4 | . . 3 . 1 Engine 4 | . . 3 . 1 Core . | . . . . . Reactor . | . . . . . Propulsion 23 | . 5 17 . 1 Treads 14 | . 2 11 . 1 Leg 8 | . 3 5 . . Wheel 1 | . . 1 . . Hover . | . . . . . Flight . | . . . . . Utility 13 | . 4 5 2 2 Device 4 | . . 3 1 . Storage 3 | . 3 . . . Processor 5 | . 1 1 1 2 Hackware . | . . . . . Protection 1 | . . 1 . . Artifact . | . . . . . Weapon 16 | . 3 8 . 5 Energy Gun 12 | . 3 7 . 2 Energy Cannon . | . . . . . Ballistic Gun 3 | . . 1 . 2 Ballistic Cannon . | . . . . . Launcher 1 | . . . . 1 Special Weapon . | . . . . . Impact Weapon . | . . . . . Slashing Weapon . | . . . . . Piercing Weapon . | . . . . . Special Melee Weapon . | . . . . . Unidentified Prototypes 3 | . . 3 . . Corrupted Parts 1 | . . 1 . . System Corruption 3 | . . 3 . . Parts Lost 19 | . 2 6 . 11 Power 1 | . . . . 1 Propulsion 4 | . . 1 . 3 Utility 5 | . . 3 . 2 Weapon 9 | . 2 2 . 5 Highest Loss Streak 11 | . 1 1 . 11 To Critical Strikes . | . . . . . Average Slot Usage (%) 89 | . 83 88 100 80 Engine 11 | . 14 11 11 7 Treads 18 | . 11 14 33 22 Leg 11 | . 16 16 . . Device 6 | . . 6 11 6 Storage 11 | . 14 11 11 9 Processor 5 | . . 4 11 16 Protection 1 | . . 2 . . Energy Gun 17 | . 26 17 11 7 Ballistic Gun 4 | . . 3 11 9 Peak Build Rating 17 | . 8 17 13 17 Average Rating 11 | . 5 13 13 13 On Entrance 9 | 6 6 8 13 13 Naked Turns . | . . . . . Heaviest Build 38 | 14 28 38 32 32 Greatest Support 60 | 20 40 60 60 60 Greatest Overweight (x) 7 | . . 1 . 7 Average Overweight (x) . | . . . . . Largest Inventory Capacity 25 | . 25 15 15 15 Average Capacity 14 | . 10 15 15 15 Most Carried 12 | . 8 12 11 10 Average Carried 8 | . 6 8 9 7 Final Capacity 15 | 8 15 15 15 15 Final Carried 10 | 6 7 9 10 5 Class Distribution -------------------- 61% | Scavenger-Mutant 38% | Mutant Dominant Class ---------------- Mutant | -10/Materials Scavenger-Mutant | -9/Materials Scavenger-Mutant | -9/Mines Scavenger-Mutant | -8/Materials Resources | -11 -10 -9 -9 -8 ----------- Run | Yrd Mat Mat Min Mat Matter Collected 983 | 200 110 369 147 157 Remotely . | . . . . . Salvage Created 2187 | . 505 1214 147 321 Parts 131 | . 25 83 7 16 Haulers Intercepted 4 | . . 3 . 1 Recyclers Shooed 1 | . . 1 . . Parts Field Recycled . | . . . . . Retrieved Matter . | . . . . . Parts Self-Destructed . | . . . . . Prevented . | . . . . . Kills | -11 -10 -9 -9 -8 ------- Run | Yrd Mat Mat Min Mat Combat Hostiles Destroyed 39 | . 10 20 4 5 Guns 32 | . 9 14 4 5 AOE 5 | . 1 4 . . Classes Destroyed 13 | . 3 8 . 2 Worker 5 | . 1 4 . . Builder 3 | . . 2 1 . Tunneler 1 | . . 1 . . Hauler 4 | . . 3 . 1 Operator 1 | . . 1 . . Watcher 5 | . 2 3 . . Swarmer 6 | . . 4 2 . Grunt 23 | . 10 9 2 2 Brawler 1 | . . 1 . . Duelist 1 | . . 1 . . Sentry 5 | . . 5 . . Specialist 2 | . . . . 2 Hunter 1 | . . . . 1 Best Kill Streak 5 | . 4 5 3 5 Combat Bots Only 5 | . 3 4 2 5 Max Kills in Single Turn 3 | . 2 3 1 1 Gunslinging 1 | . 1 . . . Exploded 3 | . 1 3 . . Melee . | . . . . . Uniques/NPCs Destroyed . | . . . . . Combat | -11 -10 -9 -9 -8 -------- Run | Yrd Mat Mat Min Mat Hostile Shots Fired 261 | . 41 102 26 92 Missed 67 | . 8 22 8 29 Damage Taken 2890 | . 365 1145 184 1196 Core 575 | . 41 173 . 361 Absorbed by Shields . | . . . . . Regen/Repaired (Parts) 107 | . . 107 . . Core Remaining (%) 79 | 100 83 . 56 . Volleys Fired 159 | . 39 86 12 22 Largest 2 | . 2 2 2 2 Hottest 112 | . 90 112 68 96 Shots Fired 289 | . 67 156 24 42 Gun 288 | . 67 156 24 41 Cannon . | . . . . . Launcher 1 | . . . . 1 Special . | . . . . . Kinetic 67 | . . 26 12 29 Thermal 121 | . 24 89 . 8 Explosive 1 | . . . . 1 Electromagnetic 100 | . 43 41 12 4 Robot Hit Streak 27 | . 25 27 5 16 Robot Miss Streak 5 | . 4 5 4 2 Penetration Max . | . . . . . Secondary Targets 11 | . 3 2 1 5 Max Gunslinging Chain 1 | . 1 1 1 1 Shots Hit Robots 189 | . 46 101 12 30 Core Hits 90 | . 21 48 7 14 Critical Kills . | . . . . . Critical Parts Destroyed . | . . . . . Critical Strikes 5 | . . 5 . . Burn 4 | . . 4 . . Corrupt 1 | . . 1 . . Melee Attacks . | . . . . . Impact . | . . . . . Slashing . | . . . . . Piercing . | . . . . . Sneak Attacks . | . . . . . Combat Hostiles . | . . . . . Follow-up Attacks . | . . . . . Damage Inflicted 3189 | . 696 1772 245 476 Guns 2807 | . 615 1577 180 435 Cannons . | . . . . . Explosions 354 | . 81 167 65 41 Melee . | . . . . . Ramming 28 | . . 28 . . Kinetic 627 | . . 197 76 354 Thermal 1536 | . 330 1075 65 66 Explosive 41 | . . . . 41 Electromagnetic 957 | . 366 472 104 15 Impact . | . . . . . Slashing . | . . . . . Piercing . | . . . . . Highest Corruption 7 | . . 7 7 . Average Corruption 5 | . . 4 7 . Corruption Purged . | . . . . . Corruption Blocked . | . . . . . Effects 44 | . . 26 18 . Message Errors 14 | . . 9 5 . Matter Fused 11 | . . 4 7 . Heat Flow Errors 6 | . . 3 3 . Energy Discharges 4 | . . 4 . . Parts Rejected 1 | . . 1 . . Data Loss (minor) 4 | . . 1 3 . Data Loss (major) 1 | . . 1 . . Misfires 3 | . . 3 . . Overload Shots . | . . . . . Overflow Damage 7 | . . 7 . . Projectiles . | . . . . . Explosions 7 | . . 7 . . Melee . | . . . . . Knockbacks 1 | . . 1 . . Impact 1 | . . 1 . . Kinetic . | . . . . . Secondary . | . . . . . Self-Inflicted Damage 88 | . . 88 . . Shots 2 | . . 2 . . Rammed 1 | . . 1 . . Targets Rammed 7 | . . 7 . . Kicked 6 | . . 6 . . Crushed . | . . . . . Highest Temperature 357 | . 234 357 200 54 Average Temperature 83 | . 87 88 65 21 Received Heat Transfer 1002 | . 201 387 54 360 Effects 2 | . . 2 . . Interference 2 | . . 2 . . Siege Activations . | . . . . . Robots Corrupted . | . . . . . Combat Hostiles . | . . . . . Parts Fried 1 | . . 1 . . Impact Corruptions . | . . . . . Robots Melted 2 | . . 2 . . Combat Hostiles 2 | . . 2 . . Parts Melted 7 | . 1 5 . 1 Heat Transferred 3572 | . 740 2583 100 149 Parts Sabotaged . | . . . . . Parts Stolen . | . . . . . Parts Stripped . | . . . . . Power Chain Reactions 4 | . 1 2 1 . Alert | -11 -10 -9 -9 -8 ------- Run | Yrd Mat Mat Min Mat Peak Influence 368 | . 282 368 125 121 Initial 105 | . . 34 105 29 Average 140 | . 130 183 89 63 Maximum Alert Level 1 | . 1 1 . . Low Security (%) 72 | . 75 52 100 100 Level 1 27 | . 24 47 . . Level 2 . | . . . . . Level 3 . | . . . . . Level 4 . | . . . . . Level 5 . | . . . . . High Security . | . . . . . Max Security . | . . . . . Squads Dispatched 10 | . 3 4 . 3 Investigation 4 | . 3 . . 1 Extermination . | . . . . . Reinforcement 6 | . . 4 . 2 Assault . | . . . . . Garrison . | . . . . . Intercept . | . . . . . Searches Triggered . | . . . . . Construction Impeded 1 | . . 1 . . Haulers Reinforced . | . . . . . Active Scanning Responses . | . . . . . Cargo Convoy Interrupts . | . . . . . Stealth | -11 -10 -9 -9 -8 --------- Run | Yrd Mat Mat Min Mat Distress Signals 3 | . . 2 . 1 Communications Jammed . | . . . . . Distress Signals . | . . . . . Times Spotted 72 | . 13 36 5 18 Peak Tracking Total 8 | . 4 4 3 8 Tactical Retreats 3 | . . 2 . 1 Traps | -11 -10 -9 -9 -8 ------- Run | Yrd Mat Mat Min Mat Traps Triggered 1 | . 1 . . . Indirectly . | . . . . . Trap Hack Attempts . | . . . . . Triggered . | . . . . . Disarmed . | . . . . . Reprogrammed . | . . . . . Reused . | . . . . . Traps Extracted . | . . . . . Installed . | . . . . . Triggered . | . . . . . Machines | -11 -10 -9 -9 -8 ---------- Run | Yrd Mat Mat Min Mat Machines Disabled 1 | . 1 . . . Max in Single Turn 1 | . 1 . . . Machines Repaired . | . . . . . Machines Dismantled . | . . . . . Machines Sabotaged . | . . . . . Overloaded Fab Kills . | . . . . . Hacking | -11 -10 -9 -9 -8 --------- Run | Yrd Mat Mat Min Mat Machines Accessed 11 | . 4 6 . 1 Terminals 9 | . 4 4 . 1 Fabricators . | . . . . . Repair Stations 1 | . . 1 . . Recycling Units . | . . . . . Scanalyzers 1 | . . 1 . . Garrison Access . | . . . . . Total Hacks 36 | . 14 20 . 2 Successful 12 | . 4 8 . . Failed 24 | . 10 12 . 2 Catastrophic 5 | . 4 . . 1 Database Lockouts . | . . . . . Manual 27 | . 11 13 . 3 Terminals 28 | . 14 12 . 2 Fabricators . | . . . . . Repair Stations 7 | . . 7 . . Recycling Units . | . . . . . Scanalyzers 1 | . . 1 . . Garrison Access . | . . . . . Terminal Hacks 2 | . 1 1 . . Record 1 | . . 1 . . Alert Level 1 | . 1 . . . Fabricator Hacks . | . . . . . Repair Station Hacks 4 | . . 4 . . Scan Component 2 | . . 2 . . Repair 2 | . . 2 . . Recycling Unit Hacks . | . . . . . Scanalyzer . | . . . . . Garrison Access Hacks . | . . . . . Unauthorized Hacks 6 | . 3 3 . . Terminals 6 | . 3 3 . . Botnet 6 | . 3 3 . . Fabricators . | . . . . . Repair Stations . | . . . . . Recycling Units . | . . . . . Scanalyzers . | . . . . . Garrison Access . | . . . . . Data Cores Recovered . | . . . . . Used . | . . . . . Hacking Detections 10 | . 4 5 . 1 Full Trace Events 3 | . 2 . . 1 Feedback Events . | . . . . . Feedback Blocked . | . . . . . Robot Schematics Acquired . | . . . . . Robots Built . | . . . . . Authchips . | . . . . . Time . | . . . . . Total Robot Build Rating . | . . . . . Part Schematics Acquired . | . . . . . Parts Built . | . . . . . Authchips . | . . . . . Time . | . . . . . Total Part Build Rating . | . . . . . Parts Repaired 2 | . . 2 . . Time 83 | . . 83 . . Parts Recycled . | . . . . . Recycled Matter . | . . . . . Retrieved Matter . | . . . . . Retrieved Components . | . . . . . Parts Scanalyzed . | . . . . . Part Schematics Acquired . | . . . . . Parts Damaged . | . . . . . Bothacking | -11 -10 -9 -9 -8 ------------ Run | Yrd Mat Mat Min Mat Used RIF Installer . | . . . . . Robots Hacked . | . . . . . Non-combat . | . . . . . Combat . | . . . . . Robot Hacks Applied . | . . . . . Relay Couplers Released . | . . . . . Fabnet Peak Effective % . | . . . . . Robots Rewired . | . . . . . Allies Hacked . | . . . . . Hacks Repelled . | . . . . . Allies | -11 -10 -9 -9 -8 -------- Run | Yrd Mat Mat Min Mat Total Allies 3 | . . . 3 . Largest Group 3 | . . . 3 3 Highest-Rated Group 40 | . . . 40 40 Highest-Rated Ally 16 | . . . 16 16 Total Orders . | . . . . . Ally Attacks 27 | . . . . 27 Total Damage 297 | . . . . 297 Kills 2 | . . . . 2 Allies Corrupted . | . . . . . Allies Melted . | . . . . . Intel | -11 -10 -9 -9 -8 ------- Run | Yrd Mat Mat Min Mat Robot Analysis Total . | . . . . . Derelict Logs Recovered 1 | . . . 1 . Drone Launches . | . . . . . Drone Recoveries . | . . . . . Exploration | -11 -10 -9 -9 -8 ------------- Run | Yrd Mat Mat Min Mat Turns Passed 2726 | . 618 1262 644 202 Spaces Moved 1113 | 1 351 436 253 72 Core 2 | . . . . 2 Treads 681 | . 148 210 253 70 Legs 430 | 1 203 226 . . Wheels . | . . . . . Hover . | . . . . . Flight . | . . . . . Fastest Speed 120 | 120 120 120 160 160 Average Speed 160 | 120 136 179 160 166 Slowest Speed 400 | 120 160 240 160 400 Overloaded Moves . | . . . . . Propulsion Burnouts . | . . . . . Robots Hopped . | . . . . . Cave-ins Triggered . | . . . . . Exploration Rate (%) 31 | 2 51 47 47 9 Regions Visited 4 Branch Regions 1 Pre-discovered Areas . | . . . . . Known Exits Taken . | . . . . . Unknown Exits Taken 4 | 1 1 1 1 . Scrap Searched 1 | . . . 1 . Spaces Dug . | . . . . . Terrain Destroyed 22 | . 3 10 3 6 Melee . | . . . . . Projectile . | . . . . . AOE 22 | . 3 10 3 6 Terrain Rammed . | . . . . . Walls Destroyed . | . . . . . Machines Disabled . | . . . . . Actions | -11 -10 -9 -9 -8 --------- Run | Yrd Mat Mat Min Mat Total 1755 | . 421 754 468 112 Wait 364 | . 6 159 198 1 Move 1109 | . 350 435 252 72 Hop . | . . . . . Pick Up 40 | . 9 24 3 4 Fast Attach . | . . . . . Attach 24 | . 6 13 . 5 Detach . | . . . . . Swap 32 | . 6 20 2 4 Drop 20 | . 5 10 1 4 Fire 159 | . 39 86 12 22 Melee . | . . . . . Ram . | . . . . . Kick 6 | . . 6 . . Crush 1 | . . 1 . . Escape Stasis . | . . . . . Rewire . | . . . . . Trap . | . . . . . Miscellaneous . | . . . . . Route ------- -11/Scrapyard -10/Materials -9/Materials -9/Mines -8/Materials History --------- Turn | Location | Event 1 | -11/Scrapyard | Discovered new exit (range 0) 1 | -11/Scrapyard | Entered Materials 353 | -10/Materials | Build established: Mutant 597 | -10/Materials | Discovered new exit (range 10) 619 | -10/Materials | Entered another Materials area 619 | -9/Materials | Evolved 2 slots: Propulsion x1, Utility x1 1304 | -9/Materials | Build established: Scavenger-Mutant 1636 | -9/Materials | Discovered new exit (range 16) 1803 | -9/Materials | Repaired Hvy. EM Pulse Gun 1855 | -9/Materials | Repaired Imp. Medium Laser 1881 | -9/Materials | Entered Mines 2323 | -9/Mines | Learned Materials stockpile data 2463 | -9/Mines | Discovered new exit (range 8) 2476 | -9/Mines | Assisted by bots powering up and referring to "LRC-V3" 2525 | -9/Mines | Entered Materials 2525 | -8/Materials | Accompanied by 3 allies 2525 | -8/Materials | Evolved 2 slots: Utility x2 2712 | -8/Materials | Lost 3 allies 2712 | -8/Materials | Core integrity fell below 50% 2727 | -8/Materials | Self-destructed Last Messages --------------- 02711_ Imp. Targeting Computer destroyed. 02711_ Critical hit (Blast). 02711_ Knocked back. 02712_ K-01 Serf collects debris. 02713_ Knocked back. 02713_ K-01 Serf collects debris. 02714_ Acquired 54 matter. 02714_ U-05 Engineer lays Concrete. 02715_ Knocked back. 02715_ U-05 Engineer lays Concrete. 02716_ K-01 Serf collects debris. 02716_ U-05 Engineer lays Concrete. 02717_ Critical hit (Burn: +37). 02717_ K-01 Serf collects debris. 02726_ H-61 Shepherd calls for reinforcements. 02726_ ALERT: Hostile activity reported, dispatching reinforcements to area. 02726_ Sml. Laser destroyed. 02726_ Imp. Medium Laser destroyed. 02727_ Critical hit (Burn: +37). Map ----- +----------------------------------------------------+ | ??????????????#### # # ?? ?##?????????? | | ??????????????##?########## # ? ??????????????? | | ???????????????#?### # #? ??#???????????? | | ???????????#?#??#?## """ + ###+#####??????????? | | ????????????#?###### """ # #???????????? | | ???????????##???#?## """ # ###?????????? | | ?????????????????### ? # #???????????? | | ???????????????? ### ? # #####+###??????????? | | ???????????????"?########## # ? #???????????? | | ???????????? """# / # # ?#?#????????? | | ???????????????""# # + ? ???#???????????? | | ?????????????????# # # ??##??????????? | | ??????????????"??# + #? ? ? ?#?##???????? | | ????????????? ???# # # ????????#????????? | | ?????????????????# # ##########?????????? | | ?????????????? # # # #?????????? | | ??????????????? ?# # # ##????????? | | ???????????????#?# # + #?????????? | | ????????????????########### # #?????????? | | ?????????????????#?#??##?## %# ##????????? | | ??????????????????###??#### % # #?????????? | | ????????????????########### # #?#???????? | | ???????????????????# #![[# ? ##????????? | | ??????????????????## T #!%%#?? #?#???????? | | ?????????????????#?# % g%=!#?#?#######????????? | | ??????????????????## @#[%!#?## ????#?#???????? | | ???????????????????# g==%## ??? ? ??????????? | | ????????????????#??# #Hgk##? ? ? ?????????? | | ???????????????????########!%k#???? ? ?????????? | | ??????????????????#???????#*=%##??? ?????????????? | | ????????????????##?????" ?#!!=##?????? ??????????? | | ????????????????#??? ??? ##[*%##?????? ??????????? | | ?????????????????#? ??????#%=!##? ?""????????????? | | ?????????????????#???? ??##*[=#? ????????????????? | | ??????????????????? ? ????#*!%#? ? ??????????????? | | ???????????????????????#???[ ??????????????????? | | ????????????????????????? ? ??????????????????? | | ???????????????????? ?????? ??????????????????? | | ?????????????????????????? ?????????????????? | | ??????????????????????????? ?????????????????? | | ???????????????????????????# ?????????????????? | | ???????????????????????????? ???????????????????? | | ?????????????????????????????????????????????????? | | ?????????????????????????????????????????????????? | | ?????????????????????????????????????????????????? | | ?????????????????????????????????????????????????? | | ?????????????????????????????????????????????????? | | ?????????????????????????????????????????????????? | | ?????????????????????????????????????????????????? | | ?????????????????????????????????????????????????? | +----------------------------------------------------+ Best States ------------- Heat Dissipation 31 Energy Generation 14 Energy Capacity 280 Matter Stores 300 Matter Capacity 300 Sight Range 18 Robot Scan Range 14 Terrain Scan Range 16 Terrain Scan Density 85 Armor Coverage 150 Evasion (%) 55 Targeting Accuracy 12 Recoil Reduction 3 Item Schematics ----------------- None Robot Schematics ------------------ None Fabricated ------------ Nothing Alien Tech Used ----------------- None Achievements -------------- None Challenges ------------ None Game ------ Seed SchematicMetafieldAmplifier Manual? 0 Play Time 00:21:03 Cumulative 95.6 hours Start 2025.01.16 @ 15:37:23 End 2025.01.17 @ 00:28:48 Sessions 3 Manual Loads 0 Difficulty Rogue Special Mode None Game No. 114 Rogue 99 Adventurer 15 Explorer 0 Win Type - Total 2 Types 1/0/1/0/0/0/0/0/0 Lore% 25 Gallery% 60 Achievement% 49 Wizard Run 0 Options --------- Layout 0 ASCII 0 Keyboard 0 Movement Mouse Keybinds 0 Fullscreen 2 Font 36/Smallcaps Map View 76x50 Zoom Use 0% Tactical HUD 1 Map Filters NONE Filters NONE Steam 1 RUN: b26524b0-590f-4354-9efe-d02903a83b7a